Cogmind - Beta 10.2 @@@ ROGUE MODE // 2022.01.13 @ 00:38:38 Player: Okkudo Result: Destroyed by S-10 Pest with Light Assault Rifle Performance ------------- Evolutions (0) 0 Regions Visited (1) 200 Robots Destroyed (20) 100 Value Destroyed (298) 298 Prototype IDs (0) 0 Alien Tech Used (0) 0 Bonus (0) 0 TOTAL SCORE: 598 Bonus ------- None Cogmind --------- Core Integrity 0/250 Matter 242/300 Energy 98/100 System Corruption 0% Temperature Cool (1) Movement Treading (180) Ox1 Location -10/Materials Parts ------- > --- POWER (1) -------- (None) > --- PROPULSION (2) --- Light Treads > --- UTILITY (2) ------ Medium Storage Unit Large Storage Unit > --- WEAPON (2) ------- Mining Claw > --- INVENTORY (14) --- Signal Interpreter Signal Interpreter Weapon Shielding Light Armor Plating Grenade Launcher Grenade Launcher Datajack Peak State ------------ > --- POWER ------------ Ion Engine > --- PROPULSION ------- Light Treads Light Treads > --- UTILITY ---------- Medium Storage Unit Light Armor Plating > --- WEAPON ----------- Grenade Launcher Mining Claw > --- INVENTORY -------- Wheel Grenade Launcher [Rating: 7] Favorites ----------- Power Ion Engine Engine Ion Engine Propulsion Light Treads Treads Light Treads Wheel Wheel Utility Medium Storage Unit Storage Medium Storage Unit Protection Light Armor Plating Weapon Mining Claw Energy Gun EM Pulse Gun Energy Cannon Beam Cannon Launcher Grenade Launcher Slashing Weapon Mining Claw Special Melee Weapon Datajack Build | -11 -10 ------- Run | Scr Mat Slots Evolved . | . . Power . | . . Propulsion . | . . Utility . | . . Weapon . | . . Parts Attached 26 | 6 20 Power 2 | 1 1 Engine 2 | 1 1 Core . | . . Reactor . | . . Propulsion 8 | 2 6 Treads 6 | 2 4 Leg . | . . Wheel 2 | . 2 Hover . | . . Flight . | . . Utility 5 | 1 4 Device . | . . Storage 4 | 1 3 Processor . | . . Hackware . | . . Protection 1 | . 1 Artifact . | . . Weapon 11 | 2 9 Energy Gun 3 | 2 1 Energy Cannon 1 | . 1 Ballistic Gun . | . . Ballistic Cannon . | . . Launcher 3 | . 3 Special Weapon . | . . Impact Weapon . | . . Slashing Weapon 3 | . 3 Piercing Weapon . | . . Special Melee Weapon 1 | . 1 Unidentified Prototypes . | . . Parts Lost 2 | . 2 Power . | . . Propulsion 1 | . 1 Utility . | . . Weapon 1 | . 1 Highest Loss Streak 1 | . 1 Average Slot Usage (%) 59 | . 59 Engine 2 | . 2 Treads 13 | . 13 Wheel 3 | . 3 Storage 15 | . 15 Protection 1 | . 1 Energy Gun 3 | . 3 Launcher 6 | . 6 Slashing Weapon 11 | . 11 Special Melee Weapon 1 | . 1 Naked Turns . | . . Heaviest Build 29 | 12 29 Greatest Support 40 | 40 40 Greatest Overweight (x) 4 | 2 4 Average Overweight (x) . | . . Largest Inventory Capacity 14 | 6 14 Average Capacity 7 | 5 8 Most Carried 8 | 5 8 Average Carried 5 | 2 5 Final Capacity 14 | 6 14 Final Carried 7 | 3 7 Class Distribution -------------------- 100% | Mutant Dominant Class ---------------- Mutant | -10/Materials Resources | -11 -10 ----------- Run | Scr Mat Matter Collected 492 | 260 232 Remotely . | . . Salvage Created 397 | 100 297 Parts 32 | 1 31 Haulers Intercepted 1 | . 1 Recyclers Shooed 3 | . 3 Parts Field Recycled . | . . Retrieved Matter . | . . Parts Self-Destructed . | . . Prevented . | . . Kills | -11 -10 ------- Run | Scr Mat Combat Hostiles Destroyed 8 | . 8 Guns 1 | . 1 AOE 7 | . 7 Classes Destroyed 8 | 1 7 Worker 4 | . 4 Builder 3 | . 3 Hauler 1 | . 1 Recycler 2 | 1 1 Operator 1 | . 1 Watcher 1 | . 1 Swarmer 3 | . 3 Grunt 5 | . 5 Best Kill Streak 5 | 1 5 Combat Bots Only 3 | . 3 Max Kills in Single Turn 5 | 1 5 Gunslinging . | . . Exploded 2 | . 2 Melee . | . . Uniques/NPCs Destroyed . | . . Combat | -11 -10 -------- Run | Scr Mat Damage Taken 765 | . 765 Core 252 | . 252 Absorbed by Shields . | . . Core Remaining (%) 100 | 100 . Volleys Fired 22 | 4 18 Largest 2 | 2 1 Hottest 80 | 80 40 Shots Fired 26 | 8 18 Gun 16 | 8 8 Cannon . | . . Launcher 10 | . 10 Special . | . . Kinetic . | . . Thermal 4 | 4 . Explosive 10 | . 10 Electromagnetic 12 | 4 8 Robot Hit Streak 4 | 4 4 Robot Miss Streak 3 | 1 3 Penetration Max . | . . Secondary Targets . | . . Shots Hit Robots 20 | 5 15 Core Hits 28 | 2 26 Critical Hits . | . . Critical Kills . | . . Critical Parts Destroyed . | . . Melee Attacks 24 | . 24 Impact . | . . Slashing 23 | . 23 Piercing . | . . Sneak Attacks 3 | . 3 Combat Hostiles . | . . Follow-up Attacks . | . . Damage Inflicted 1742 | 88 1654 Guns 73 | 51 22 Cannons . | . . Explosions 1435 | 37 1398 Melee 234 | . 234 Ramming . | . . Kinetic . | . . Thermal 48 | 48 . Explosive 1398 | . 1398 Electromagnetic 62 | 40 22 Impact . | . . Slashing 234 | . 234 Piercing . | . . Highest Corruption . | . . Average Corruption . | . . Corruption Purged . | . . Overload Shots . | . . Overflow Damage 92 | 1 91 Projectiles . | . . Explosions 92 | 1 91 Melee . | . . Knockbacks . | . . Impact . | . . Kinetic . | . . Secondary . | . . Self-Inflicted Damage 109 | . 109 Shots 3 | . 3 Rammed . | . . Targets Rammed . | . . Kicked . | . . Crushed . | . . Highest Temperature 72 | 72 11 Average Temperature 34 | 38 7 Received Heat Transfer 204 | . 204 Siege Activations . | . . Robots Corrupted . | . . Combat Hostiles . | . . Parts Fried 1 | 1 . Impact Corruptions . | . . Robots Melted . | . . Combat Hostiles . | . . Parts Melted . | . . Heat Transferred 125 | 125 . Parts Sabotaged . | . . Parts Stolen . | . . Parts Stripped . | . . Power Chain Reactions 1 | 1 . Missiles Intercepted . | . . Alert | -11 -10 ------- Run | Scr Mat Peak Influence 295 | 5 295 Initial 3 | . 3 Average 131 | 2 147 Maximum Alert Level 1 | . 1 Low Security (%) 54 | 100 49 Level 1 45 | . 50 Level 2 . | . . Level 3 . | . . Level 4 . | . . Level 5 . | . . High Security . | . . Max Security . | . . Squads Dispatched 1 | . 1 Investigation 1 | . 1 Extermination . | . . Reinforcement . | . . Assault . | . . Garrison . | . . Intercept . | . . Construction Impeded . | . . Haulers Reinforced . | . . Stealth | -11 -10 --------- Run | Scr Mat Distress Signals 1 | . 1 Communications Jammed . | . . Distress Signals . | . . Times Spotted 23 | . 23 Peak Tracking Total 4 | . 4 Tactical Retreats 4 | . 4 Traps | -11 -10 ------- Run | Scr Mat Traps Triggered 1 | . 1 Indirectly . | . . Trap Hack Attempts . | . . Triggered . | . . Disarmed . | . . Reprogrammed . | . . Reused . | . . Traps Extracted . | . . Installed . | . . Triggered . | . . Machines | -11 -10 ---------- Run | Scr Mat Machines Disabled 2 | . 2 Max in Single Turn 1 | . 1 Machines Sabotaged . | . . Garrisons Compromised . | . . Overloaded Fab Kills . | . . Fab Network Shutdowns . | . . Hacking | -11 -10 --------- Run | Scr Mat Machines Accessed 4 | . 4 Terminals 4 | . 4 Fabricators . | . . Repair Stations . | . . Recycling Units . | . . Scanalyzers . | . . Garrison Access . | . . Total Hacks 15 | . 15 Successful 10 | . 10 Failed 5 | . 5 Catastrophic 2 | . 2 Database Lockouts . | . . Manual 7 | . 7 Terminals 15 | . 15 Fabricators . | . . Repair Stations . | . . Recycling Units . | . . Scanalyzers . | . . Garrison Access . | . . Terminal Hacks 9 | . 9 Terminal Index 1 | . 1 Alert Level 2 | . 2 Unreport Threat 1 | . 1 Dispatch Records 1 | . 1 Hauler Manifests 1 | . 1 Zone Layout 3 | . 3 Fabricator Hacks . | . . Repair Station Hacks . | . . Recycling Unit Hacks . | . . Scanalyzer . | . . Garrison Access Hacks . | . . Unauthorized Hacks 1 | . 1 Terminals 1 | . 1 Botnet 1 | . 1 Fabricators . | . . Repair Stations . | . . Recycling Units . | . . Scanalyzers . | . . Garrison Access . | . . Data Cores Recovered . | . . Used . | . . Hacking Detections 2 | . 2 Full Trace Events 2 | . 2 Feedback Events . | . . Feedback Blocked . | . . Robot Schematics Acquired . | . . Robots Built . | . . Matter . | . . Time . | . . Total Robot Build Rating . | . . Part Schematics Acquired . | . . Parts Built . | . . Matter . | . . Time . | . . Total Part Build Rating . | . . Parts Repaired . | . . Time . | . . Parts Recycled . | . . Recycled Matter . | . . Retrieved Matter . | . . Retrieved Components . | . . Parts Scanalyzed . | . . Part Schematics Acquired . | . . Parts Damaged . | . . Bothacking | -11 -10 ------------ Run | Scr Mat Used RIF Installer . | . . Robots Hacked 1 | . 1 Non-combat 1 | . 1 Combat . | . . Robot Hacks Applied 1 | . 1 no_distress 1 | . 1 Relay Couplers Released . | . . Robots Rewired . | . . Allies Hacked . | . . Hacks Repelled . | . . Allies | -11 -10 -------- Run | Scr Mat Total Allies . | . . Largest Group . | . . Highest-Rated Group . | . . Highest-Rated Ally . | . . Total Orders . | . . Ally Attacks . | . . Total Damage . | . . Kills . | . . Allies Corrupted . | . . Allies Melted . | . . Intel | -11 -10 ------- Run | Scr Mat Robot Analysis Total . | . . Derelict Logs Recovered . | . . Drone Launches . | . . Drone Recoveries . | . . Exploration | -11 -10 ------------- Run | Scr Mat Turns Passed 740 | 81 659 Spaces Moved 407 | 49 358 Core 107 | 26 81 Treads 137 | 23 114 Legs . | . . Wheels 163 | . 163 Hover . | . . Flight . | . . Fastest Speed 50 | 50 80 Average Speed 134 | 113 137 Slowest Speed 250 | 160 250 Overloaded Moves . | . . Propulsion Burnouts . | . . Robots Hopped . | . . Cave-ins Triggered . | . . Exploration Rate (%) 30 | 3 58 Regions Visited 1 Branch Regions . Pre-discovered Areas . | . . Known Exits Taken . | . . Unknown Exits Taken 1 | 1 . Scrap Searched . | . . Spaces Dug 15 | . 15 Terrain Destroyed 92 | . 92 Melee 7 | . 7 Projectile . | . . AOE 85 | . 85 Terrain Rammed . | . . Walls Destroyed . | . . Machines Disabled . | . . Actions | -11 -10 --------- Run | Scr Mat Total 527 | 66 461 Wait 17 | . 17 Move 406 | 48 358 Hop . | . . Pick Up 19 | 8 11 Fast Attach 4 | 1 3 Attach 14 | 5 9 Detach 5 | . 5 Swap 8 | . 8 Drop 8 | . 8 Fire 22 | 4 18 Melee 24 | . 24 Ram . | . . Kick . | . . Crush . | . . Escape Stasis . | . . Rewire . | . . Trap . | . . Miscellaneous . | . . Route ------- -11/Scrapyard -10/Materials (discovered 2 exits: [*Mat x2]) History --------- Turn | Location | Event 5 | -11/Scrapyard | Discovered new exit (range 16) 82 | -11/Scrapyard | Entered Materials 156 | -10/Materials | Discovered new exit (range 13) 318 | -10/Materials | Build established: Mutant 535 | -10/Materials | Core integrity fell below 50% 570 | -10/Materials | Core integrity fell below 20% 733 | -10/Materials | Discovered new exit (range 5) 741 | -10/Materials | Destroyed by S-10 Pest with Light Assault Rifle Last Messages --------------- >>Layout(Zone) Retrieving Zone 2P layout... Downloaded map data. >>Enumerate(Squads) Retrieving dispatch records... Found 4 active squads: 2x Surveillance 1x Patrol 1x Transport >>Alert(Check) Current Alert Level: 1-C >>Alert(Purge) Purged threat record, alert level lowered. 00736_ S-10 Pest suffers critical hit. 00736_ S-10 Pest destroyed. 00737_ Triggered Blade Trap. 00737_ Massive razor-sharp blades shoot up from within the floor. 00737_ Lgt. Treads severed. 00737_ Grenade Launcher severed. 00740_ Acquired Grenade Launcher. Map ----- +----------------------------------------------------+ | """ #######/###???????????????????? | | """ ##????# #?????????????????????? | | """ #?????# #?????????????????????? | | #????## ##########+######?????? | | #+###????# % +?????? | | # ######## #?????? | | #?????? | | #################+####### ????????? | | ????????????# #####??????????? | | ##??????????# #?????? ???????? | | #??????????# #????# # """ # | | #??????????# """" #???## + # | | #??????????# """" #???#T ss# # | | #??????????# """" ##??## # # | | #????????#########"#???#=%*####### | | ##????????# ##???# [ # # | | #?????????# """"" #????# # """ # | | #?????????# """"" #????# # """ # | | #?????????# """"" ###### # """ # | | #?????????# """"" # # # | | #?????????# """"" + # """ # | | #?????????# """"" # + """ # | | #?????????# """"" # # """ # | | #?????????# # # # | | #?????????########## # # | | #??????????????????####T#@ # # | | ??????????????????????### # # | | ????????????????????????# < ####### | | ????????????????????????# #?????? | | ????????????????????????#####?????? | | ??????????????????????????????????? | | ??????????????????????????????????? | | ??????????????????????????????????? | | ??????????????????????????????????? | | | | | | | | | | | | | | | | | | | | | | | | | | | | | | | | | +----------------------------------------------------+ Best States ------------- Heat Dissipation 25 Energy Generation 10 Energy Capacity 250 Matter Stores 300 Matter Capacity 300 Sight Range 16 Terrain Scan Density 10 Armor Coverage 150 Evasion (%) 50 Recoil Reduction 2 Item Schematics ----------------- None Robot Schematics ------------------ None Fabricated ------------ Nothing Alien Tech Used ----------------- None Achievements -------------- Part-time Excavator Challenges ------------ None Game ------ Seed GatlingResetStabilizer Manual? 0 Play Time 00:16:33 Cumulative 26.9 hours Start 2022.01.13 @ 00:19:20 End 2022.01.13 @ 00:38:38 Sessions 1 Manual Loads 0 Difficulty Rogue Special Mode None Game No. 58 Rogue 58 Adventurer 0 Explorer 0 Win Type - Total 0 Types 0/0/0/0/0/0/0/0/0 Lore% 21 Gallery% 21 Achievement% 18 Wizard Run 0 Options --------- ASCII 0 Keyboard 0 Movement Mouse Keybinds 0 Fullscreen 1 Font 12/Terminus Map View 83x54 Tactical HUD 1 Map Filters NONE Filters NONE Steam 1 RUN: 3d92ec51-f719-4dea-897a-a35befeee735